[Event "*** MasterClass Titled Tuesday Blitz"]
[Site "Chess.com"]
[Date "2017.12.05"]
[Round "7"]
[White "lucasmito"]
[Black "1random"]
[Result "0-1"]
[WhiteElo "2201"]
[BlackElo "2200"]
[TimeControl "180+2"]
[EndTime "15:44:16 PST"]
[Termination "1random won on time"]

1. e4 {[%clk 0:03:01.9]} 1... d5 {[%clk 0:02:54.7]} 2. exd5 {[%clk 0:03:01]}
2... Nf6 {[%clk 0:02:56.3]} 3. d4 {[%clk 0:02:54.8]} 3... Bg4 {[%clk 0:02:49.1]}
4. Be2 {[%clk 0:02:51.5]} 4... Bxe2 {[%clk 0:02:50.2]} 5. Nxe2 {[%clk
0:02:52.8]} 5... Qxd5 {[%clk 0:02:51.9]} 6. O-O {[%clk 0:02:50.1]} 6... Nc6
{[%clk 0:02:52.5]} 7. Nbc3 {[%clk 0:02:47.8]} 7... Qh5 {[%clk 0:02:53.4]} 8. Ng3
{[%clk 0:02:43.2]} 8... Qxd1 {[%clk 0:02:51.4]} 9. Rxd1 {[%clk 0:02:45.1]} 9...
O-O-O {[%clk 0:02:52.8]} 10. Be3 {[%clk 0:02:37.1]} 10... e6 {[%clk 0:02:51.6]}
11. Nce4 {[%clk 0:02:33.3]} 11... Nxe4 {[%clk 0:02:52.5]} 12. Nxe4 {[%clk
0:02:34.7]} 12... Nb4 {[%clk 0:02:54.1]} 13. c3 {[%clk 0:02:12.8]} 13... Nd5
{[%clk 0:02:44.6]} 14. c4 {[%clk 0:02:01.4]} 14... Nxe3 {[%clk 0:02:36.4]} 15.
fxe3 {[%clk 0:02:03.3]} 15... Be7 {[%clk 0:02:38]} 16. Nc3 {[%clk 0:01:50.4]}
16... Bg5 {[%clk 0:02:34.4]} 17. Kf2 {[%clk 0:01:50]} 17... e5 {[%clk
0:02:10.2]} 18. Ne4 {[%clk 0:01:35.5]} 18... Bh4+ {[%clk 0:01:37.9]} 19. Kf3
{[%clk 0:01:12.8]} 19... f5 {[%clk 0:01:28.3]} 20. Nc5 {[%clk 0:01:07.7]} 20...
Bf6 {[%clk 0:01:26.6]} 21. Nb3 {[%clk 0:00:38.3]} 21... exd4 {[%clk 0:01:16.8]}
22. exd4 {[%clk 0:00:38.8]} 22... Rhe8 {[%clk 0:01:11.2]} 23. Rd3 {[%clk
0:00:35.8]} 23... Re4 {[%clk 0:01:08.5]} 24. Rad1 {[%clk 0:00:37.2]} 24... Rde8
{[%clk 0:01:07.8]} 25. Nc5 {[%clk 0:00:24.5]} 25... Re2 {[%clk 0:01:02.8]} 26.
R1d2 {[%clk 0:00:20.9]} 26... Re1 {[%clk 0:00:45.5]} 27. d5 {[%clk 0:00:15.3]}
27... Bg5 {[%clk 0:00:38.8]} 28. Rc2 {[%clk 0:00:06.8]} 28... Rf1+ {[%clk
0:00:24.2]} 29. Rf2 {[%clk 0:00:05.3]} 29... Rxf2+ {[%clk 0:00:18.8]} 30. Kxf2
{[%clk 0:00:07.2]} 30... Bf6 {[%clk 0:00:18.7]} 31. b3 {[%clk 0:00:07.8]} 31...
g6 {[%clk 0:00:14.6]} 32. Ne6 {[%clk 0:00:08.8]} 32... Kd7 {[%clk 0:00:15.5]}
33. Nc5+ {[%clk 0:00:09.1]} 33... Kc8 {[%clk 0:00:16.6]} 34. Ne6 {[%clk
0:00:10.7]} 34... b6 {[%clk 0:00:17.9]} 35. c5 {[%clk 0:00:08.6]} 35... Kd7
{[%clk 0:00:18.1]} 36. b4 {[%clk 0:00:06.6]} 36... Ra8 {[%clk 0:00:18.1]} 37. g3
{[%clk 0:00:04.4]} 37... a5 {[%clk 0:00:19.2]} 0-1

[Event "*** MasterClass Titled Tuesday Blitz"]
[Site "Chess.com"]
[Date "2017.12.05"]
[Round "7"]
[White "TheBigBoss04"]
[Black "luisgui16"]
[Result "0-1"]
[WhiteElo "2494"]
[BlackElo "2321"]
[TimeControl "180+2"]
[EndTime "15:44:20 PST"]
[Termination "luisgui16 won by resignation"]

1. d4 {[%clk 0:03:01.9]} 1... Nf6 {[%clk 0:02:59.4]} 2. c4 {[%clk 0:03:03.3]}
2... g6 {[%clk 0:02:58.8]} 3. Nc3 {[%clk 0:03:03.6]} 3... Bg7 {[%clk 0:02:59.8]}
4. e4 {[%clk 0:03:04]} 4... d6 {[%clk 0:03:00.4]} 5. Nf3 {[%clk 0:03:04.6]} 5...
O-O {[%clk 0:03:00.5]} 6. h3 {[%clk 0:03:05.3]} 6... e5 {[%clk 0:03:00.3]} 7. d5
{[%clk 0:03:06.1]} 7... Nh5 {[%clk 0:02:59.2]} 8. g3 {[%clk 0:03:06]} 8... a5
{[%clk 0:02:59.8]} 9. Be2 {[%clk 0:03:03.2]} 9... Na6 {[%clk 0:02:49.4]} 10. Be3
{[%clk 0:03:03.4]} 10... Nc5 {[%clk 0:02:46.4]} 11. Nd2 {[%clk 0:03:02.1]} 11...
Nf6 {[%clk 0:02:37.3]} 12. g4 {[%clk 0:02:58.1]} 12... Ne8 {[%clk 0:02:30.5]}
13. g5 {[%clk 0:02:58.3]} 13... f5 {[%clk 0:02:30]} 14. h4 {[%clk 0:02:56.9]}
14... Bd7 {[%clk 0:01:57.3]} 15. h5 {[%clk 0:02:33.9]} 15... c6 {[%clk 0:01:40]}
16. hxg6 {[%clk 0:02:27.6]} 16... hxg6 {[%clk 0:01:41]} 17. exf5 {[%clk
0:02:18.8]} 17... Bxf5 {[%clk 0:01:29.6]} 18. Bxc5 {[%clk 0:02:10.7]} 18... dxc5
{[%clk 0:01:31.5]} 19. Nde4 {[%clk 0:02:11.8]} 19... Bxe4 {[%clk 0:01:21.8]} 20.
Nxe4 {[%clk 0:02:11.8]} 20... Rf4 {[%clk 0:00:54.9]} 21. Nxc5 {[%clk 0:01:37.3]}
21... Qb6 {[%clk 0:00:25.5]} 22. Nd3 {[%clk 0:01:37.8]} 22... Rd4 {[%clk
0:00:26.5]} 23. Bg4 {[%clk 0:01:19.5]} 23... e4 {[%clk 0:00:22.3]} 24. Be6+
{[%clk 0:01:19.8]} 24... Kf8 {[%clk 0:00:23.7]} 25. Qg4 {[%clk 0:01:21.2]} 25...
exd3 {[%clk 0:00:10.2]} 26. Qf3+ {[%clk 0:01:21.5]} 26... Ke7 {[%clk 0:00:11.4]}
27. Qf7+ {[%clk 0:01:21.7]} 27... Kd6 {[%clk 0:00:12.8]} 28. Qd7+ {[%clk
0:01:22.4]} 28... Ke5 {[%clk 0:00:13.9]} 29. O-O {[%clk 0:01:23.5]} 29... Qc7
{[%clk 0:00:12.8]} 30. Rae1+ {[%clk 0:01:19.8]} 30... Kf4 {[%clk 0:00:14.1]} 31.
Re3 {[%clk 0:00:45.8]} 31... Qxd7 {[%clk 0:00:10.2]} 32. Bxd7 {[%clk 0:00:47.7]}
32... Nd6 {[%clk 0:00:11]} 33. Kg2 {[%clk 0:00:44]} 33... Nf5 {[%clk 0:00:10.4]}
34. Rf3+ {[%clk 0:00:42.8]} 34... Kxg5 {[%clk 0:00:11.8]} 35. Rg1 {[%clk
0:00:39.6]} 35... Rg4+ {[%clk 0:00:12.8]} 36. Kf1 {[%clk 0:00:37.5]} 36... Rxg1+
{[%clk 0:00:14.6]} 37. Kxg1 {[%clk 0:00:39.4]} 37... d2 {[%clk 0:00:14.6]} 38.
Rd3 {[%clk 0:00:40.8]} 38... cxd5 {[%clk 0:00:15.4]} 39. cxd5 {[%clk 0:00:41.3]}
39... Bxb2 {[%clk 0:00:16.3]} 40. Rxd2 {[%clk 0:00:41.9]} 40... Be5 {[%clk
0:00:17.3]} 41. Be6 {[%clk 0:00:41.9]} 41... Rd8 {[%clk 0:00:17.1]} 42. Re2
{[%clk 0:00:37.8]} 42... Kf6 {[%clk 0:00:17.4]} 43. Kg2 {[%clk 0:00:36.5]} 43...
Nd4 {[%clk 0:00:18.5]} 0-1

[Event "*** MasterClass Titled Tuesday Blitz"]
[Site "Chess.com"]
[Date "2017.12.05"]
[Round "7"]
[White "champ2005"]
[Black "pastouche06"]
[Result "1/2-1/2"]
[WhiteElo "2433"]
[BlackElo "2334"]
[TimeControl "180+2"]
[EndTime "15:44:23 PST"]
[Termination "Game drawn by repetition"]

1. e4 {[%clk 0:03:01.5]} 1... c6 {[%clk 0:02:59.4]} 2. Nc3 {[%clk 0:03:00.6]}
2... d5 {[%clk 0:03:00.8]} 3. Qf3 {[%clk 0:03:02.1]} 3... d4 {[%clk 0:02:55.9]}
4. Nce2 {[%clk 0:03:02.8]} 4... e5 {[%clk 0:02:56.6]} 5. d3 {[%clk 0:03:02.4]}
5... Nf6 {[%clk 0:02:55.1]} 6. Qg3 {[%clk 0:03:03]} 6... Nbd7 {[%clk 0:02:49.6]}
7. Nf3 {[%clk 0:02:54.1]} 7... g6 {[%clk 0:02:45.5]} 8. Nxe5 {[%clk 0:02:53]}
8... Qa5+ {[%clk 0:02:45.2]} 9. Bd2 {[%clk 0:02:45]} 9... Qxe5 {[%clk
0:02:45.8]} 10. Qxe5+ {[%clk 0:02:42]} 10... Nxe5 {[%clk 0:02:45.2]} 11. Nxd4
{[%clk 0:02:43.5]} 11... Bg7 {[%clk 0:02:40]} 12. f4 {[%clk 0:02:37.5]} 12...
Ned7 {[%clk 0:02:39.9]} 13. Nf3 {[%clk 0:02:37.2]} 13... O-O {[%clk 0:02:31.5]}
14. h3 {[%clk 0:02:37.8]} 14... Nh5 {[%clk 0:02:26.3]} 15. O-O-O {[%clk
0:02:36.5]} 15... Ng3 {[%clk 0:02:15.2]} 16. Rg1 {[%clk 0:02:37.4]} 16... f5
{[%clk 0:02:08.9]} 17. e5 {[%clk 0:02:35]} 17... Nc5 {[%clk 0:02:05.3]} 18. d4
{[%clk 0:02:33.7]} 18... Nxf1 {[%clk 0:02:05.8]} 19. Rgxf1 {[%clk 0:02:32.5]}
19... Ne4 {[%clk 0:02:06.8]} 20. Be3 {[%clk 0:02:33.2]} 20... Be6 {[%clk
0:02:07.4]} 21. Kb1 {[%clk 0:02:33.7]} 21... Bd5 {[%clk 0:01:55.4]} 22. Nd2
{[%clk 0:02:34]} 22... Nxd2+ {[%clk 0:01:54.8]} 23. Rxd2 {[%clk 0:02:34.9]}
23... b5 {[%clk 0:01:55.9]} 24. g4 {[%clk 0:02:25.6]} 24... Be4 {[%clk
0:01:49.9]} 25. g5 {[%clk 0:02:24.6]} 25... h5 {[%clk 0:01:44.3]} 26. h4 {[%clk
0:02:12.1]} 26... Kf7 {[%clk 0:01:44.4]} 27. b3 {[%clk 0:02:08.4]} 27... Ke6
{[%clk 0:01:35.8]} 28. Rdd1 {[%clk 0:02:05.7]} 28... a5 {[%clk 0:01:31.7]} 29.
Kb2 {[%clk 0:02:05.4]} 29... Rfb8 {[%clk 0:01:31.6]} 30. a3 {[%clk 0:02:02.2]}
30... Bf8 {[%clk 0:01:31.9]} 31. Rd2 {[%clk 0:01:55]} 31... a4 {[%clk
0:01:27.2]} 32. b4 {[%clk 0:01:47.6]} 32... Kd5 {[%clk 0:01:24.1]} 33. Bg1
{[%clk 0:01:43.6]} 33... Ke6 {[%clk 0:00:58.3]} 34. Re1 {[%clk 0:01:41.6]} 34...
Be7 {[%clk 0:00:58.9]} 35. Re3 {[%clk 0:01:37.3]} 35... c5 {[%clk 0:00:54.6]}
36. dxc5 {[%clk 0:01:26.2]} 36... Rd8 {[%clk 0:00:55.6]} 37. Ree2 {[%clk
0:01:26.4]} 37... Bf3 {[%clk 0:00:51.8]} 38. Rf2 {[%clk 0:01:17.9]} 38... Bc6
{[%clk 0:00:52.3]} 39. Kc3 {[%clk 0:01:14.4]} 39... Rd5 {[%clk 0:00:40]} 40.
Rxd5 {[%clk 0:01:12.8]} 40... Kxd5 {[%clk 0:00:41.9]} 41. Re2 {[%clk 0:01:07.4]}
41... Rd8 {[%clk 0:00:39.9]} 42. Re1 {[%clk 0:01:02.5]} 42... Ke6 {[%clk
0:00:39.1]} 43. Bd4 {[%clk 0:01:03.4]} 43... Rd5 {[%clk 0:00:38.2]} 44. Re2
{[%clk 0:01:02.9]} 44... Rd8 {[%clk 0:00:38.2]} 45. Re1 {[%clk 0:01:03.6]} 45...
Be4 {[%clk 0:00:39]} 46. Re2 {[%clk 0:01:02.2]} 46... Bc6 {[%clk 0:00:20.3]} 47.
Re1 {[%clk 0:00:59.9]} 47... Rd7 {[%clk 0:00:21.3]} 48. Re2 {[%clk 0:01:00.7]}
48... Rd8 {[%clk 0:00:22]} 49. Re3 {[%clk 0:00:59.2]} 49... Rd7 {[%clk 0:00:23]}
50. Re2 {[%clk 0:01:00.3]} 50... Rd8 {[%clk 0:00:24.3]} 51. Re3 {[%clk
0:01:01.4]} 51... Rd7 {[%clk 0:00:25.6]} 52. Re2 {[%clk 0:01:02.6]} 52... Rd8
{[%clk 0:00:27.1]} 1/2-1/2

[Event "*** MasterClass Titled Tuesday Blitz"]
[Site "Chess.com"]
[Date "2017.12.05"]
[Round "7"]
[White "Sola00"]
[Black "nicegg"]
[Result "1-0"]
[WhiteElo "1544"]
[BlackElo "1984"]
[TimeControl "180+2"]
[EndTime "15:44:26 PST"]
[Termination "Sola00 won by resignation"]

1. d4 {[%clk 0:03:01.9]} 1... Nf6 {[%clk 0:03:00.4]} 2. Bf4 {[%clk 0:02:59.3]}
2... c5 {[%clk 0:03:00.8]} 3. e3 {[%clk 0:02:59.9]} 3... Qb6 {[%clk 0:03:01.6]}
4. Nc3 {[%clk 0:03:00.8]} 4... Qxb2 {[%clk 0:03:02.5]} 5. Nb5 {[%clk 0:02:59.8]}
5... Na6 {[%clk 0:02:56.7]} 6. Rb1 {[%clk 0:02:47.5]} 6... Qxa2 {[%clk 0:02:54]}
7. Ra1 {[%clk 0:02:47.7]} 7... Qb2 {[%clk 0:02:52.2]} 8. Rxa6 {[%clk 0:02:42.5]}
8... bxa6 {[%clk 0:02:50.7]} 9. Nc7+ {[%clk 0:02:34.8]} 9... Kd8 {[%clk
0:02:50.3]} 10. Nxa8 {[%clk 0:02:11.8]} 10... Nd5 {[%clk 0:02:51.2]} 11. Nf3
{[%clk 0:02:05.2]} 11... Nxf4 {[%clk 0:02:46.3]} 12. exf4 {[%clk 0:02:03.4]}
12... Qc3+ {[%clk 0:02:40.6]} 13. Qd2 {[%clk 0:02:01.5]} 13... Qxd2+ {[%clk
0:02:37]} 14. Kxd2 {[%clk 0:02:03.4]} 14... f6 {[%clk 0:02:34.6]} 15. Bc4 {[%clk
0:02:01.5]} 15... Bb7 {[%clk 0:02:33.5]} 16. Rb1 {[%clk 0:01:58.4]} 16... Kc8
{[%clk 0:02:31.7]} 17. dxc5 {[%clk 0:01:55.3]} 17... e6 {[%clk 0:02:30]} 18. c6
{[%clk 0:01:52.4]} 18... dxc6 {[%clk 0:02:22.3]} 19. Bxe6+ {[%clk 0:01:49.2]}
19... Kb8 {[%clk 0:02:23.4]} 20. Nd4 {[%clk 0:01:45.5]} 20... Kxa8 {[%clk
0:02:21.4]} 21. Bd7 {[%clk 0:01:43.8]} 21... Bc5 {[%clk 0:02:21.3]} 22. Bxc6
{[%clk 0:01:34.8]} 22... Bxc6 {[%clk 0:02:15.5]} 23. Nxc6 {[%clk 0:01:36.7]}
23... Rc8 {[%clk 0:02:15.1]} 24. Na5 {[%clk 0:01:35.1]} 24... Bxf2 {[%clk
0:02:14.8]} 25. Kd3 {[%clk 0:01:33.8]} 25... Bb6 {[%clk 0:02:13.6]} 26. Ra1
{[%clk 0:01:30.9]} 26... Rd8+ {[%clk 0:02:12.4]} 27. Ke2 {[%clk 0:01:28]} 27...
Rd4 {[%clk 0:02:08.6]} 28. Nb3 {[%clk 0:01:23.5]} 28... Re4+ {[%clk 0:02:08.1]}
29. Kd3 {[%clk 0:01:10.4]} 29... Rxf4 {[%clk 0:02:07.1]} 30. Re1 {[%clk
0:01:10.2]} 30... Rg4 {[%clk 0:02:01.7]} 31. g3 {[%clk 0:01:08.6]} 31... a5
{[%clk 0:02:02.4]} 32. c3 {[%clk 0:01:04]} 32... a4 {[%clk 0:02:02]} 33. Nd4
{[%clk 0:01:00.9]} 33... Bxd4 {[%clk 0:02:00.8]} 34. cxd4 {[%clk 0:01:02.7]}
34... Kb7 {[%clk 0:02:01.9]} 35. Ra1 {[%clk 0:00:58.1]} 35... Rg5 {[%clk
0:02:00.1]} 36. Rxa4 {[%clk 0:00:58.8]} 36... Kb6 {[%clk 0:02:01.2]} 37. Kc4
{[%clk 0:00:53.8]} 37... h5 {[%clk 0:01:57.7]} 38. Ra1 {[%clk 0:00:50.6]} 38...
a5 {[%clk 0:01:58.3]} 39. Re1 {[%clk 0:00:48.7]} 39... h4 {[%clk 0:01:53.9]} 40.
gxh4 {[%clk 0:00:45.7]} 40... Rh5 {[%clk 0:01:53.8]} 41. Re6+ {[%clk 0:00:44.1]}
41... Kb7 {[%clk 0:01:51.5]} 42. Re7+ {[%clk 0:00:42.5]} 42... Kb6 {[%clk
0:01:52.7]} 43. Rxg7 {[%clk 0:00:40.6]} 43... Rxh4 {[%clk 0:01:53.8]} 44. Rg6
{[%clk 0:00:39.7]} 44... Rf4 {[%clk 0:01:53.9]} 45. h4 {[%clk 0:00:37.2]} 45...
a4 {[%clk 0:01:51.1]} 46. h5 {[%clk 0:00:34]} 46... a3 {[%clk 0:01:51.5]} 47.
Kc3 {[%clk 0:00:32.5]} 47... a2 {[%clk 0:01:52]} 48. Kb2 {[%clk 0:00:32.8]}
48... Rf2+ {[%clk 0:01:52.6]} 49. Ka1 {[%clk 0:00:30.8]} 49... Kb5 {[%clk
0:01:53.7]} 50. h6 {[%clk 0:00:25.5]} 50... Kc4 {[%clk 0:01:54.2]} 51. Rg8
{[%clk 0:00:23.3]} 51... Rh2 {[%clk 0:01:53.8]} 52. Rh8 {[%clk 0:00:20.4]} 52...
Kb3 {[%clk 0:01:53.7]} 53. Rb8+ {[%clk 0:00:19.3]} 53... Kc4 {[%clk 0:01:54.3]}
54. Rh8 {[%clk 0:00:18.6]} 54... Kxd4 {[%clk 0:01:54.4]} 55. h7 {[%clk 0:00:16]}
55... Ke4 {[%clk 0:01:54.2]} 56. Re8+ {[%clk 0:00:14.1]} 56... Kf4 {[%clk
0:01:55.3]} 57. h8=Q {[%clk 0:00:15.6]} 57... Rxh8 {[%clk 0:01:55.3]} 58. Rxh8
{[%clk 0:00:17.5]} 58... f5 {[%clk 0:01:56.4]} 59. Kxa2 {[%clk 0:00:18.5]} 59...
Ke3 {[%clk 0:01:56.8]} 60. Kb2 {[%clk 0:00:20.4]} 60... f4 {[%clk 0:01:57.1]}
61. Kc1 {[%clk 0:00:21.5]} 61... Ke2 {[%clk 0:01:58.2]} 62. Re8+ {[%clk
0:00:21.8]} 62... Kf1 {[%clk 0:01:58.2]} 63. Kd1 {[%clk 0:00:22.8]} 63... f3
{[%clk 0:01:59]} 64. Re1+ {[%clk 0:00:21.5]} 64... Kf2 {[%clk 0:01:59.4]} 65.
Kd2 {[%clk 0:00:22.1]} 65... Kg2 {[%clk 0:01:59.5]} 66. Ke3 {[%clk 0:00:22.7]}
66... Kg3 {[%clk 0:01:58.7]} 67. Rf1 {[%clk 0:00:23.3]} 67... Kg2 {[%clk
0:01:58.3]} 68. Rxf3 {[%clk 0:00:24.5]} 1-0

[Event "*** MasterClass Titled Tuesday Blitz"]
[Site "Chess.com"]
[Date "2017.12.05"]
[Round "7"]
[White "Saitama_Hero"]
[Black "LuisFSiles"]
[Result "1-0"]
[WhiteElo "2123"]
[BlackElo "2218"]
[TimeControl "180+2"]
[EndTime "15:44:28 PST"]
[Termination "Saitama_Hero won by resignation"]

1. d4 {[%clk 0:03:01.9]} 1... f5 {[%clk 0:02:57.6]} 2. Qd3 {[%clk 0:03:01.4]}
2... d5 {[%clk 0:02:56.6]} 3. g4 {[%clk 0:03:02.1]} 3... g6 {[%clk 0:02:49.5]}
4. g5 {[%clk 0:02:58.9]} 4... Nc6 {[%clk 0:02:48.4]} 5. Nf3 {[%clk 0:02:58.7]}
5... Bg7 {[%clk 0:02:48.7]} 6. Bf4 {[%clk 0:02:55.6]} 6... e6 {[%clk 0:02:30.8]}
7. Nc3 {[%clk 0:02:55.6]} 7... Nge7 {[%clk 0:02:31.1]} 8. Nb5 {[%clk 0:02:54.4]}
8... e5 {[%clk 0:02:29.4]} 9. Nxe5 {[%clk 0:02:49.9]} 9... Nxe5 {[%clk
0:02:28.2]} 10. Bxe5 {[%clk 0:02:46.1]} 10... Bxe5 {[%clk 0:02:28.7]} 11. dxe5
{[%clk 0:02:48]} 11... a6 {[%clk 0:02:13.2]} 12. Nc3 {[%clk 0:02:44.8]} 12...
Be6 {[%clk 0:02:13.9]} 13. Bg2 {[%clk 0:02:43]} 13... c6 {[%clk 0:02:09.8]} 14.
O-O-O {[%clk 0:02:21.2]} 14... Qa5 {[%clk 0:02:07.7]} 15. Kb1 {[%clk 0:02:12.3]}
15... O-O-O {[%clk 0:02:02.5]} 16. Qd4 {[%clk 0:02:05.3]} 16... Kb8 {[%clk
0:01:46.7]} 17. e3 {[%clk 0:01:54.9]} 17... c5 {[%clk 0:01:43.1]} 18. Qa4 {[%clk
0:01:52]} 18... Qc7 {[%clk 0:01:36]} 19. f4 {[%clk 0:01:53.3]} 19... d4 {[%clk
0:01:17.8]} 20. exd4 {[%clk 0:01:50.7]} 20... cxd4 {[%clk 0:01:17.8]} 21. Rxd4
{[%clk 0:01:49.4]} 21... Rxd4 {[%clk 0:01:18.7]} 22. Qxd4 {[%clk 0:01:49.3]}
22... Rd8 {[%clk 0:01:20.2]} 23. Qe3 {[%clk 0:01:44.8]} 23... Nc6 {[%clk
0:01:10.4]} 24. Rd1 {[%clk 0:01:35.8]} 24... Rxd1+ {[%clk 0:00:58.9]} 25. Nxd1
{[%clk 0:01:37.7]} 25... Nb4 {[%clk 0:00:57.9]} 26. Nc3 {[%clk 0:01:37]} 26...
Bxa2+ {[%clk 0:00:57]} 27. Kc1 {[%clk 0:01:15.7]} 27... Be6 {[%clk 0:00:49.1]}
28. Qd4 {[%clk 0:01:10.6]} 28... Nc6 {[%clk 0:00:44.6]} 29. Qc5 {[%clk
0:01:00.6]} 29... Nd8 {[%clk 0:00:25.1]} 30. Qxc7+ {[%clk 0:00:53.5]} 30... Kxc7
{[%clk 0:00:27]} 31. Nd5+ {[%clk 0:00:50.9]} 31... Bxd5 {[%clk 0:00:26.2]} 32.
Bxd5 {[%clk 0:00:50.2]} 32... Kd7 {[%clk 0:00:23.4]} 33. c4 {[%clk 0:00:34.1]}
33... b6 {[%clk 0:00:23.3]} 34. Kd2 {[%clk 0:00:33.6]} 34... Ne6 {[%clk
0:00:21.1]} 35. Ke3 {[%clk 0:00:29.4]} 35... a5 {[%clk 0:00:20.4]} 36. Bxe6+
{[%clk 0:00:07.1]} 36... Kxe6 {[%clk 0:00:22.3]} 37. b3 {[%clk 0:00:08.2]} 37...
Kd7 {[%clk 0:00:21.5]} 38. Kd4 {[%clk 0:00:09.6]} 38... Kc6 {[%clk 0:00:21.8]}
39. h4 {[%clk 0:00:10.8]} 39... Kd7 {[%clk 0:00:21.6]} 40. Kd5 {[%clk
0:00:10.8]} 40... Kc7 {[%clk 0:00:21.5]} 41. e6 {[%clk 0:00:11.4]} 41... Kd8
{[%clk 0:00:22.4]} 42. Kd6 {[%clk 0:00:11.8]} 42... Ke8 {[%clk 0:00:22.7]} 43.
Kc6 {[%clk 0:00:12.2]} 1-0

[Event "*** MasterClass Titled Tuesday Blitz"]
[Site "Chess.com"]
[Date "2017.12.05"]
[Round "7"]
[White "ZCorrales"]
[Black "Apocalyps999"]
[Result "0-1"]
[WhiteElo "2163"]
[BlackElo "2423"]
[TimeControl "180+2"]
[EndTime "15:44:42 PST"]
[Termination "Apocalyps999 won by resignation"]

1. e4 {[%clk 0:03:01.9]} 1... c5 {[%clk 0:02:59.7]} 2. Nf3 {[%clk 0:03:01.9]}
2... d6 {[%clk 0:03:00.1]} 3. d4 {[%clk 0:03:02.4]} 3... cxd4 {[%clk 0:03:01.5]}
4. Qxd4 {[%clk 0:03:03.4]} 4... Nc6 {[%clk 0:03:00.4]} 5. Bb5 {[%clk 0:03:03.1]}
5... Bd7 {[%clk 0:03:01.1]} 6. Bxc6 {[%clk 0:03:03.8]} 6... Bxc6 {[%clk
0:03:01]} 7. c4 {[%clk 0:03:04.4]} 7... Nf6 {[%clk 0:02:54.6]} 8. Nc3 {[%clk
0:03:04.8]} 8... g6 {[%clk 0:02:51.9]} 9. O-O {[%clk 0:03:04.9]} 9... Bg7 {[%clk
0:02:52.7]} 10. Qe3 {[%clk 0:02:53.7]} 10... O-O {[%clk 0:02:51.7]} 11. Qe2
{[%clk 0:02:44.4]} 11... Rc8 {[%clk 0:02:50.3]} 12. Rd1 {[%clk 0:02:39.6]} 12...
Nd7 {[%clk 0:02:46.8]} 13. Bg5 {[%clk 0:02:25.8]} 13... h6 {[%clk 0:02:40]} 14.
Bd2 {[%clk 0:02:24.9]} 14... a6 {[%clk 0:01:57.4]} 15. Rab1 {[%clk 0:02:20.2]}
15... Kh7 {[%clk 0:01:03.7]} 16. h3 {[%clk 0:02:13.7]} 16... b6 {[%clk
0:00:58.2]} 17. b3 {[%clk 0:01:27.7]} 17... Bb7 {[%clk 0:00:57]} 18. Nd5 {[%clk
0:01:25.5]} 18... e6 {[%clk 0:00:46.8]} 19. Nc3 {[%clk 0:01:21.1]} 19... b5
{[%clk 0:00:44.9]} 20. Be1 {[%clk 0:01:06.1]} 20... bxc4 {[%clk 0:00:43.9]} 21.
bxc4 {[%clk 0:01:06.7]} 21... Nc5 {[%clk 0:00:44]} 22. Qe3 {[%clk 0:00:39.8]}
22... Qc7 {[%clk 0:00:42.1]} 23. Nd4 {[%clk 0:00:37.2]} 23... Ba8 {[%clk
0:00:38.9]} 24. Bd2 {[%clk 0:00:33.3]} 24... Nd7 {[%clk 0:00:39.2]} 25. Rdc1
{[%clk 0:00:31.3]} 25... Qxc4 {[%clk 0:00:39.5]} 26. Nde2 {[%clk 0:00:31.2]}
26... Qc5 {[%clk 0:00:40.1]} 27. Qf4 {[%clk 0:00:29.7]} 27... Qe5 {[%clk
0:00:40.5]} 28. Qe3 {[%clk 0:00:24.1]} 28... Rb8 {[%clk 0:00:40.6]} 29. g3
{[%clk 0:00:19.7]} 29... Rxb1 {[%clk 0:00:40]} 30. Rxb1 {[%clk 0:00:20]} 30...
Rc8 {[%clk 0:00:41.1]} 31. Kh2 {[%clk 0:00:19.3]} 31... f5 {[%clk 0:00:39.5]}
32. f4 {[%clk 0:00:15.9]} 32... Qc5 {[%clk 0:00:38.9]} 33. Qxc5 {[%clk
0:00:16.8]} 33... Nxc5 {[%clk 0:00:38.5]} 34. exf5 {[%clk 0:00:17.6]} 34... gxf5
{[%clk 0:00:38.9]} 35. Rb6 {[%clk 0:00:16.9]} 35... Ne4 {[%clk 0:00:30.6]} 36.
Nxe4 {[%clk 0:00:17.1]} 36... Bxe4 {[%clk 0:00:31.6]} 37. Rxd6 {[%clk
0:00:17.8]} 37... Rc2 {[%clk 0:00:32]} 38. Kg1 {[%clk 0:00:17.8]} 38... Bd5
{[%clk 0:00:32.3]} 39. Rd7 {[%clk 0:00:15.3]} 39... Rxd2 {[%clk 0:00:32]} 40.
Nc3 {[%clk 0:00:15.5]} 40... Kg6 {[%clk 0:00:31.6]} 41. Nxd5 {[%clk 0:00:13.9]}
41... Rxd5 {[%clk 0:00:26.9]} 42. Re7 {[%clk 0:00:14.6]} 42... Kf6 {[%clk
0:00:24.9]} 43. Ra7 {[%clk 0:00:14.1]} 43... Ra5 {[%clk 0:00:26.2]} 44. g4
{[%clk 0:00:13.8]} 44... Rxa2 {[%clk 0:00:25.4]} 45. g5+ {[%clk 0:00:13.6]}
45... hxg5 {[%clk 0:00:26.3]} 46. fxg5+ {[%clk 0:00:14.7]} 46... Kg6 {[%clk
0:00:27.8]} 47. h4 {[%clk 0:00:14.8]} 47... Bd4+ {[%clk 0:00:28.5]} 0-1